[Event "4NCL Div 2 2024-25"]
[Site "England"]
[Date "2025.02.16"]
[Round "6.4"]
[White "Lishoy Gengis Paratazham, Dildarav"]
[Black "Hughes, Roy"]
[Result "1/2-1/2"]
[Annotator "TA"]
[ECO "E09"]
[WhiteElo "2045"]
[BlackElo "2008"]
[PlyCount "56"]
[EventDate "2024.11.23"]
[EventType "team-tourn"]
[EventCountry "ENG"]
[SourceTitle "playchess.com"]
[Source "ChessBase"]
[SourceQuality "1"]
[TimeControl "40/6000+30:3000+30"]

{[%evp 19,56,15,8,11,22,4,14,26,15,27,50,32,34,33,38,13,11,0,-1,0,12,0,15,0,17,8,28,5,33,0,20,0,-3,-24,-29,-52,-52,-48,-48]} 1. c4 {[%emt 0:10:03]} c6 {[%emt 0:10:27]} 2. Nf3 {[%emt 0:00:08]} d5 {[%emt 0:00:13]} 3. g3 {[%emt 0:00:05]} Nf6 {[%emt 0:00:47]} 4. Bg2 {[%emt 0:00:09]} e6 {[%emt 0:03:17]} 5. b3 {[%emt 0:00:18]} Be7 {[%emt 0:01:38]} 6. Bb2 {[%emt 0:00:11]} Nbd7 {[%emt 0:00:41]} 7. O-O {[%emt 0:00:11]} O-O {[%emt 0:01:22]} 8. Qc2 {[%emt 0:04:33]} Re8 {[%emt 0:05:30]} 9. d4 {[%emt 0:04:16]} b6 {[%emt 0:12:13]} 10. Nbd2 {[%emt 0:00:38]} Bb7 {[%emt 0:00:19]} 11. Rfd1 {[%emt 0:15:13] E09: Closed Catalan: Main Line: 7 Qc2 c6 8 Nbd2.} Rc8 {[%emt 0:03:52]} 12. e4 {[%emt 0:07:01]} dxe4 {[%emt 0:00:29]} 13. Nxe4 {[%emt 0:00:09] The position is equal.} Nxe4 {[%emt 0:00:41]} 14. Qxe4 {[%emt 0:00:01]} Nf6 {[%emt 0:00:28]} 15. Qe2 {[%emt 0:00:01]} Qc7 {[%emt 0:00:56]} 16. Ne5 {[%emt 0:00:05]} c5 {[%emt 0:13:23]} 17. Bxb7 $146 {[%emt 0:00:05]} ({Predecessor:} 17. dxc5 Bxc5 18. Rd3 Bxg2 19. Kxg2 Red8 20. Rad1 Rxd3 21. Qxd3 Be7 22. Qf3 h6 23. Ng4 Nxg4 24. Qxg4 {1-0 Behling,R (2032)-Bruening,M (1840) Arco op 46th 2024 (4)}) 17... Qxb7 {[%emt 0:00:24]} 18. Qf3 {[%emt 0:00:04]} (18. dxc5 {seems wilder.} Bxc5 19. Rd3 Red8 20. Rad1) 18... Qxf3 {[%emt 0:09:19]} 19. Nxf3 {[%emt 0:00:01]} Red8 {[%emt 0:02:36]} 20. Kf1 {[%emt 0:09:59]} h6 {[%emt 0:02:43]} 21. Rac1 {[%emt 0:06:01]} Kf8 {[%emt 0:02:12]} 22. Ke2 {[%emt 0:06:15]} Ke8 {[%emt 0:04:08]} 23. h4 {[%emt 0:01:12]} a5 {[%emt 0:06:14]} 24. a4 {[%emt 0:06:51]} Kf8 {[%emt 0:05:54]} 25. dxc5 {[%emt 0:02:10]} Bxc5 {[%emt 0:00:36]} 26. Bd4 {[%emt 0:03:08]} Ne4 {[%emt 0:01:56]} 27. Bxc5+ {[%emt 0:05:17]} Nxc5 {[%emt 0:00:04]} 28. Rxd8+ {[%emt 0:05:01]} Rxd8 {[%emt 0:00:06] Weighted Error Value: White=0.15 (very precise) /Black=0.10 (very precise)   Inaccurate:     	White=1     	Black=1      OK:         	White=2     	Black=3} 1/2-1/2

[Event "4NCL Div 2 2024-25"]
[Site "England"]
[Date "2025.02.16"]
[Round "6.5"]
[White "Duggan, John E"]
[Black "Hariharan, Shambavi"]
[Result "1/2-1/2"]
[Annotator "TA"]
[ECO "E11"]
[WhiteElo "2028"]
[BlackElo "1940"]
[PlyCount "46"]
[EventDate "2024.11.23"]
[EventType "team-tourn"]
[EventCountry "ENG"]
[SourceTitle "playchess.com"]
[Source "ChessBase"]
[SourceQuality "1"]
[TimeControl "40/6000+30:3000+30"]

{[%evp 11,46,42,46,40,64,64,72,11,12,11,11,14,12,0,0,0,4,0,0,-6,-2,-4,6,-4,0,-10,-2,-2,-2,-3,-15,-10,-7,-10,0,0,14]} 1. d4 {[%emt 0:10:03]} Nf6 {[%emt 0:10:06]} 2. Nf3 {[%emt 0:00:04]} e6 {[%emt 0:00:04]} 3. c4 {[%emt 0:01:31]} d5 {[%emt 0:00:12]} 4. e3 {[%emt 0:00:35]} Bb4+ {[%emt 0:02:13]} 5. Bd2 {[%emt 0:02:14]} Bxd2+ {[%emt 0:00:42]} 6. Nbxd2 {[%emt 0:00:07]} Nbd7 {[%emt 0:00:33]} 7. Rc1 {[%emt 0:02:38] E11: Bogo-Indian.} c6 {[%emt 0:00:15]} 8. Bd3 {[%emt 0:04:39]} Qe7 {[%emt 0:01:21]} 9. cxd5 {[%emt 0:05:37] White is more active.} (9. O-O $16) 9... exd5 $11 {[%emt 0:00:29] The position is equal.} 10. Qc2 {[%emt 0:05:17]} O-O {[%emt 0:08:44]} 11. O-O {[%emt 0:02:09]} Re8 {[%emt 0:00:54]} 12. Bf5 $146 {[%emt 0:02:06]} ({Predecessor:} 12. a3 a5 13. e4 dxe4 14. Bxe4 Nxe4 15. Nxe4 Nf6 16. Nc5 Bg4 17. Rfe1 Qc7 18. Ne5 {0-1 Cuartas,J (2513)-Defromont,B (2268) Andorra op 38th 2022 (2)}) 12... g6 {[%emt 0:02:55]} 13. Bxd7 {[%emt 0:05:16]} Bxd7 {[%emt 0:01:04]} 14. Ne5 {[%emt 0:00:10]} Ng4 {[%emt 0:03:34]} 15. Nxd7 {[%emt 0:05:16]} Qxd7 {[%emt 0:00:11]} 16. Nf3 {[%emt 0:03:17]} Nh6 {[%emt 0:06:23][%cal Bg4h6,Bh6f5,Bf5d6,Bd6e4][%mdl 32]} 17. Ne5 {[%emt 0:02:34]} Qe6 {[%emt 0:00:50]} 18. h3 {[%emt 0:06:08]} Kg7 {[%emt 0:02:23]} 19. Rfe1 {[%emt 0:11:55]} Nf5 {[%emt 0:02:02]} 20. Nd3 {[%emt 0:03:07]} Nd6 {[%emt 0:01:36]} 21. Nc5 {[%emt 0:01:00]} Qe7 {[%emt 0:01:00]} 22. Re2 {[%emt 0:05:45]} a5 {[%emt 0:04:04]} 23. b3 {[%emt 0:01:49]} Ne4 {[%emt 0:06:32] Weighted Error Value: White=0.08 (flawless) /Black=0.04 (flawless)   Mistake:       	White=1     	---        OK:         	White=6     	Black=5} 1/2-1/2

[Event "4NCL Div 2 2024-25"]
[Site "England"]
[Date "2025.02.16"]
[Round "6.5"]
[White "Gilmore, Simon N"]
[Black "Nicholas, Koichi B"]
[Result "1/2-1/2"]
[Annotator "NA"]
[ECO "C45"]
[WhiteElo "1959"]
[BlackElo "2089"]
[PlyCount "67"]
[EventDate "2024.11.23"]
[EventType "team-tourn"]
[EventCountry "ENG"]
[SourceTitle "playchess.com"]
[Source "ChessBase"]
[SourceQuality "1"]
[TimeControl "40/6000+30:3000+30"]

1. e4 {[%emt 0:10:03]} e5 {[%emt 0:11:25]} 2. Nf3 {[%emt 0:00:06]} Nc6 {[%emt 0:00:07]} 3. d4 {[%emt 0:00:09]} exd4 {[%emt 0:00:09]} 4. Nxd4 {[%emt 0:00:04]} Nf6 {[%emt 0:00:13]} 5. Nxc6 {[%emt 0:00:08]} bxc6 {[%emt 0:00:15]} 6. Nc3 {[%emt 0:00:11]} d5 {[%emt 0:08:02]} 7. exd5 {[%emt 0:03:27]} cxd5 {[%emt 0:00:59]} 8. Bd3 {[%emt 0:01:11]} Bg4 {[%emt 0:08:45]} 9. f3 {[%emt 0:04:20]} Be6 {[%emt 0:01:04]} 10. O-O {[%emt 0:01:22]} Bc5+ {[%emt 0:04:00]} 11. Kh1 {[%emt 0:00:12]} O-O {[%emt 0:00:26]} 12. Bg5 {[%emt 0:03:32]} Rb8 {[%emt 0:00:58]} 13. Qd2 {[%emt 0:04:20]} Be7 {[%emt 0:04:28]} 14. b3 {[%emt 0:02:48]} Nh5 {[%emt 0:12:11]} 15. Bxe7 {[%emt 0:02:31]} Qxe7 {[%emt 0:00:05]} 16. Rfe1 {[%emt 0:03:58]} c6 {[%emt 0:12:06]} 17. Ne2 {[%emt 0:09:01]} c5 {[%emt 0:02:29]} 18. c3 {[%emt 0:03:48]} Rfd8 {[%emt 0:07:21]} 19. Rac1 {[%emt 0:04:16]} Qh4 {[%emt 0:00:51]} 20. Kg1 {[%emt 0:03:51]} g6 {[%emt 0:01:42]} 21. Qe3 {[%emt 0:05:22]} Rbc8 {[%emt 0:01:01]} 22. Qe5 {[%emt 0:13:00]} Re8 {[%emt 0:05:36]} 23. g3 {[%emt 0:04:54]} Qd8 {[%emt 0:01:14]} 24. Nf4 {[%emt 0:03:34]} Ng7 {[%emt 0:10:07]} 25. Nxe6 {[%emt 0:07:15]} Rxe6 {[%emt 0:03:26]} 26. Qf4 {[%emt 0:00:25]} Qe7 {[%emt 0:01:06]} 27. Kf2 {[%emt 0:02:41]} Re8 {[%emt 0:01:32]} 28. Qd2 {[%emt 0:00:17]} Qf6 {[%emt 0:02:19]} 29. Bb5 {[%emt 0:08:20]} Rd8 {[%emt 0:01:32]} 30. Rcd1 {[%emt 0:02:02]} Red6 {[%emt 0:00:58]} 31. Qe3 {[%emt 0:01:58]} Ne6 {[%emt 0:01:40]} 32. Qe5 {[%emt 0:00:25]} Kg7 {[%emt 0:01:55]} 33. f4 {[%emt 0:01:03]} h6 {[%emt 0:03:58]} 34. Bf1 {[%emt 0:00:25]} 1/2-1/2

[Event "4NCL Div 2 2024-25"]
[Site "England"]
[Date "2025.02.16"]
[Round "6.6"]
[White "Murawski, Jan"]
[Black "Nguyen, Thu Giang"]
[Result "1-0"]
[Annotator "TA"]
[ECO "A28"]
[WhiteElo "2065"]
[BlackElo "2049"]
[PlyCount "49"]
[EventDate "2024.11.23"]
[EventType "team-tourn"]
[EventCountry "ENG"]
[SourceTitle "playchess.com"]
[Source "ChessBase"]
[SourceQuality "1"]
[TimeControl "40/6000+30:3000+30"]

{[%evp 13,49,0,0,-3,18,15,6,0,42,28,35,32,52,76,82,63,58,38,864,859,966,960,1465,1491,1463,1383,29976,29977,3406,3410,29987,29988,29988,29989,29989,29990,29990,29991]} 1. c4 {[%emt 0:10:03]} Nf6 {[%emt 0:10:28]} 2. Nc3 {[%emt 0:00:13]} e5 {[%emt 0:01:27]} 3. Nf3 {[%emt 0:00:05]} Nc6 {[%emt 0:01:50]} 4. e4 {[%emt 0:00:05]} Bc5 {[%emt 0:01:41]} 5. Nxe5 {[%emt 0:00:05]} Nxe5 {[%emt 0:01:45]} 6. d4 {[%emt 0:00:08]} Bb4 {[%emt 0:00:32]} 7. dxe5 {[%emt 0:00:08]} Nxe4 {[%emt 0:00:22]} 8. Qf3 {[%emt 0:00:02] 8.Qf3 scores better than 8.Qd4. A28: English Opening: Four Knights Variation.} Nxc3 {[%emt 0:01:46]} 9. bxc3 {[%emt 0:00:04]} Ba5 {[%emt 0:00:24]} 10. Bf4 {[%emt 0:00:42][%cal Bc1f4,Bf4g5,Bg5f6][%mdl 32] The position is equal.} Qe7 {[%emt 0:05:22] [#] White must now prevent ...d6.} 11. Be2 {[%emt 0:03:19]} O-O {[%emt 0:08:49]} 12. O-O {[%emt 0:02:45]} Rb8 {[%emt 0:09:06]} 13. Qg3 $146 {[%emt 0:06:55]} ({Predecessor:} 13. Rad1 Bb6 14. Bd3 Bc5 15. Rfe1 b6 16. Qh5 g6 17. Qh6 f6 18. Be4 Bb7 19. exf6 Qxf6 20. Rxd7 {1-0 Zhukova,N (2328)-Vantika,A (2286) PNWCC Online blitz JP 11th 2020 (8)}) 13... Qe6 {[%emt 0:10:28]} 14. Bg5 {[%emt 0:22:07] Strongly threatening Bf6. White is more active.} Kh8 {[%emt 0:05:58]} 15. Bd3 $40 {[%emt 0:11:42][%mdl 128] White is up to no good.} Re8 $2 {[%emt 0:18:35][%mdl 8192] This costs Black the game.} (15... h6 $14 16. Qh4 Kg8 (16... Bxc3 $2 {too greedy.} 17. Bf6 $18) (16... Qxe5 $2 17. Bxh6 g6 18. Rfe1 $18)) 16. Qh4 $18 {[%emt 0:07:04][%csl Gd3][%cal Rh4h7]} h6 {[%emt 0:06:40][%cal Bh7h6,Bh6h5][%mdl 32] [#]} 17. Bf6 $1 {[%emt 0:01:20][%mdl 512]} Kg8 {[%emt 0:00:38]} (17... Qxf6 18. exf6) 18. Qg3 {[%emt 0:01:08][%csl Gf6][%cal Rg3g7]} g5 {[%emt 0:01:11]} 19. h4 {[%emt 0:01:50]} d6 {[%emt 0:06:15]} 20. hxg5 {[%emt 0:02:54]} h5 {[%emt 0:00:28]} 21. g6 {[%emt 0:02:25] gxf7+ would kill now.} Qg4 {[%emt 0:02:25]} 22. Qe3 {[%emt 0:01:02] White mates.} (22. gxf7+ Kxf7 23. Rae1 Qxg3 24. fxg3 Bg4 $18) 22... fxg6 {[%emt 0:09:50]} 23. Qh6 {[%emt 0:00:28][%csl Gf6][%cal Rh6g7]} Kf7 {[%emt 0:00:25]} 24. Qg7+ {[%emt 0:00:36]} Ke6 {[%emt 0:00:07]} 25. Bxg6 {[%emt 0:00:15] Weighted Error Value: White=0.03 (flawless) /Black=1.20  Loses game:     	---       	Black=1      Inaccurate:     	---       	Black=1      OK:         	White=1     	Black=3      Best:        	White=2     	---} ({Not} 25. Qxg6 Qxg6 26. Bxg6 Rg8 $16) 1-0

[Event "4NCL Div 2 2024-25"]
[Site "England"]
[Date "2025.02.16"]
[Round "6.6"]
[White "Alizada, Eldar"]
[Black "Gibbs, Dominic V"]
[Result "0-1"]
[Annotator "TA"]
[ECO "A41"]
[WhiteElo "1998"]
[BlackElo "1980"]
[PlyCount "116"]
[EventDate "2024.11.23"]
[EventType "team-tourn"]
[EventCountry "ENG"]
[SourceTitle "playchess.com"]
[Source "ChessBase"]
[SourceQuality "1"]
[TimeControl "40/6000+30:3000+30"]

{[%evp 9,116,-13,10,-1,6,-25,-5,-11,-10,-27,8,-52,-35,-52,-59,-72,-56,-90,-66,-139,-120,-129,-112,-134,-144,-164,-173,-152,-159,-187,-92,-94,-85,-83,-91,-79,-85,-158,-157,-297,-275,-290,-281,-276,-266,-245,-70,-70,-70,-81,-78,-122,-125,-129,-125,-179,-161,-164,-152,-215,-185,-181,-173,-178,-95,-193,-189,-185,0,-199,-190,-313,-290,-416,-114,-411,-400,-501,-508,-535,-540,-534,-525,-466,-419,-757,-745,-1349,-1348,-6470,-6427,-5506,-646,-620,-600,-583,-555,-536,-532,-1584,-1354,-6158,-6158,-5716,-5297,-29970,-29962,-29960,-10876]} 1. d4 {[%emt 0:10:04]} d6 {[%emt 0:10:09]} 2. c4 {[%emt 0:01:03]} e5 {[%emt 0:00:48]} 3. d5 {[%emt 0:01:47]} f5 {[%emt 0:03:08]} 4. g3 {[%emt 0:05:31]} Nf6 {[%emt 0:00:40]} 5. Bg2 {[%emt 0:00:06]} g6 {[%emt 0:01:28]} 6. Nc3 {[%emt 0:01:00] A41: 1 d4 d6: Tartakower System and Modern Defence.} Bg7 {[%emt 0:00:48]} 7. Bg5 {[%emt 0:07:20]} Nbd7 {[%emt 0:04:26]} 8. e4 {[%emt 0:04:36] The position is equal.} h6 {[%emt 0:04:42]} 9. Bxf6 {[%emt 0:00:49]} Nxf6 {[%emt 0:00:45]} 10. Nge2 {[%emt 0:00:11]} (10. exf5 $11 gxf5 11. Nf3) 10... O-O {[%emt 0:01:29]} 11. O-O {[%emt 0:03:02] [#]} f4 $146 {[%emt 0:05:30]} ({Predecessor:} 11... g5 12. f3 Qe8 13. exf5 Bxf5 14. Ne4 Qg6 15. N2c3 Rf7 16. Nxf6+ Bxf6 17. Ne4 Raf8 {1-0 Van der Zwaag,B-Fleur,T Sneek FSB-ch 2013 (2)}) 12. Qd3 {[%emt 0:12:33]} (12. f3 Nh5) 12... g5 {[%emt 0:02:16]} 13. Rfe1 {[%emt 0:08:53]} Qe8 {[%emt 0:04:50]} 14. b4 {[%emt 0:01:56]} ({White should try} 14. Rf1 $15) 14... Qh5 $17 {[%emt 0:07:50]} 15. f3 {[%emt 0:14:57] Repels Ng4} g4 {[%emt 0:14:11]} 16. Rf1 {[%emt 0:10:10]} gxf3 {[%emt 0:05:39][%csl Of3] Black has a strong passed pawn} 17. Bxf3 {[%emt 0:01:16]} Ng4 {[%emt 0:05:12]} 18. Bxg4 {[%emt 0:00:42]} Bxg4 {[%emt 0:02:38]} 19. Rf2 {[%emt 0:01:26]} f3 {[%emt 0:13:54] Black attacks} (19... Rf7 $19 {and Black stays clearly on top.} 20. c5 Raf8) 20. Nc1 {[%emt 0:00:22]} Qg6 {[%emt 0:00:30]} 21. Nb3 {[%emt 0:02:46]} Rf7 {[%emt 0:02:30]} 22. Nd2 {[%emt 0:01:04]} Raf8 {[%emt 0:00:19]} 23. Nd1 {[%emt 0:04:26]} (23. Raf1 $142) 23... h5 $1 {[%emt 0:00:26][%cal Oh5h4] Black is more active.} 24. h4 {[%emt 0:01:52]} (24. Ne3 $17) 24... Bh6 $19 {[%emt 0:04:42]} 25. Ne3 {[%emt 0:00:35]} Bh3 {[%emt 0:05:45]} 26. Kh2 {[%emt 0:05:59] [#]} Rg7 $1 {[%emt 0:01:10]} 27. Rg1 {[%emt 0:05:33]} Bxe3 $2 {[%emt 0:02:46]} ({Black should play} 27... Rf4 $1 $19 {[%cal Of4h4] Hoping for ...Rxh4!.} 28. b5 (28. Kxh3 $2 Rxh4+ 29. Kxh4 Bxe3 $19) 28... Rxh4 29. Nxf3 Rxe4 (29... Qxe4 30. Qxe4 Rxe4 31. Kxh3 $17)) 28. Qxe3 $15 {[%emt 0:00:04]} Bg2 $40 {[%emt 0:01:12][%mdl 128] Black attacks. The board is on fire.} 29. Rgxg2 {[%emt 0:02:20]} fxg2 {[%emt 0:00:16]} 30. Rxf8+ {[%emt 0:00:03]} Kxf8 {[%emt 0:00:20]} 31. Kxg2 {[%emt 0:00:12][%cal Oe3e1][%mdl 4096] Endgame KQR-KQN} Qg4 {[%emt 0:01:52]} 32. Qf2+ {[%emt 0:02:27]} (32. Qf3+ $17 Ke7 33. Nf1) 32... Kg8 {[%emt 0:00:26]} 33. Kh2 {[%emt 0:00:29]} b6 {[%emt 0:00:31]} 34. a4 {[%emt 0:00:42]} (34. Qf3 $17 {was necessary.}) 34... Qd1 {[%emt 0:01:24][%cal Oa7a5]} 35. a5 {[%emt 0:00:32]} Rf7 {[%emt 0:00:30]} 36. Qe3 {[%emt 0:00:01]} Qg4 {[%emt 0:01:02]} (36... bxa5 $1 $19 37. bxa5 Rf6) 37. Kg2 {[%emt 0:00:01]} (37. a6 $17) 37... Rg7 $1 $19 {[%emt 0:00:37]} 38. Kh2 {[%emt 0:00:01]} Qd1 $2 {[%emt 0:01:05]} (38... bxa5 $19 39. bxa5 Qd1) 39. Nf3 $2 {[%emt 0:02:31]} (39. Qf2 $1 $11 {and White has nothing to worry.}) 39... Qc2+ {[%emt 0:00:52]} 40. Kh3 {[%emt 0:00:01]} (40. Nd2 $142) 40... Qxc4 {[%emt 0:00:26]} 41. Ng5 {[%emt 0:50:30] [#]} (41. Kh2 $142) 41... Qf1+ $1 {[%emt 0:23:20]} (41... Qxb4 42. Qe2 $17) 42. Kh2 {[%emt 0:00:00] [#] White does not recover from this.} Rg6 $1 {[%emt 0:03:45]} ({Not} 42... bxa5 43. Qxa7 axb4 (43... Qe2+ 44. Kh3 $17) 44. Qb8+ Qf8 45. Qxb4 $17) 43. Ne6 {[%emt 0:00:00]} Kh8 {[%emt 0:02:09]} 44. Ng5 {[%emt 0:00:00]} Rf6 {[%emt 0:03:08] Prevents Qf3.} 45. Nh3 {[%emt 0:00:00] Prevents Rf2+} Qf3 {[%emt 0:01:41]} 46. Qe1 {[%emt 0:00:00]} Qd3 {[%emt 0:05:36]} 47. Kg2 {[%emt 0:00:00]} (47. Nf2 $142 Qb3 48. a6) 47... Rf3 {[%emt 0:02:45]} 48. Ng5 {[%emt 0:00:00]} Re3 {[%emt 0:01:35]} 49. Qc1 {[%emt 0:00:00]} Qe2+ {[%emt 0:01:15]} 50. Kh1 {[%emt 0:00:00]} Qe1+ {[%emt 0:01:22]} (50... Rxg3 $142 51. Qg1 Rxg1+ 52. Kxg1 Qg4+ 53. Kf1 Qxh4 54. axb6 Qxg5 55. bxa7 Qc1+ 56. Ke2 Qb2+ 57. Kf1 Qa1+ (57... Qxb4 $2 58. a8=Q+ Kg7 59. Qd8 $19) 58. Kf2 Qxa7+ 59. Kf3 h4 (59... Qa3+ {leads to mate.} 60. Ke2 h4 61. Kf2 h3 62. b5 Qd3 63. b6 cxb6 64. Ke1 Qc2 65. Kf1 h2 66. Ke1 h1=Q#) 60. b5 Qd4 (60... Qa3+ 61. Kf2 h3 62. b6 cxb6 63. Ke2 h2 64. Kf2 h1=Q 65. Ke2 Qh2+ 66. Kf1 Qc1#) 61. Kg2 Qe3 (61... Qxe4+ 62. Kh3 Kg8 63. b6 cxb6 64. Kh2 Qf3 65. Kg1 h3 66. Kh2 Qg2#) 62. b6 h3+ (62... cxb6 63. Kf1 Qd2 64. Kg1 h3 65. Kf1 Kh7 66. Kg1 Qg2#) 63. Kf1 h2 (63... Qxb6 64. Ke2 h2 65. Kf3 h1=Q+ 66. Kg4 Qbg1+ 67. Kf5 Qh7+ 68. Kf6 Qgg6#) (63... Qf3+ 64. Ke1 h2 65. Kd2 h1=Q 66. Kc2 Qh2+ 67. Kc1 Qfh1#) 64. Kg2 Qe2+ (64... cxb6 65. Kxh2 b5 66. Kg2 b4 67. Kf1 b3 68. Kg2 b2 69. Kh2 b1=Q 70. Kg2 Qbg1#) (64... Qg1+ 65. Kf3 h1=Q+ 66. Ke2 Qxe4+ 67. Kd2 Qge1#) 65. Kh1 Qf2 66. bxc7 Qg1#) 51. Qxe1 {[%emt 0:00:00]} Rxe1+ {[%emt 0:00:05] KR-KN} 52. Kg2 {[%emt 0:00:00]} bxa5 {[%emt 0:00:06]} 53. bxa5 {[%emt 0:00:00]} Ra1 {[%emt 0:00:17]} 54. Ne6 {[%emt 0:00:00]} Rxa5 {[%emt 0:01:22]} 55. Nxc7 {[%emt 0:00:00]} Ra2+ {[%emt 0:01:43]} 56. Kf3 {[%emt 0:00:00]} Ra3+ {[%emt 0:00:04]} 57. Kf2 {[%emt 0:00:00]} Rb3 {[%emt 0:00:33]} 58. Ne8 {[%emt 0:00:00]} Rb6 {[%emt 0:00:38] Weighted Error Value: White=0.89/Black=0.26 (precise)   Loses game:     	White=2     	---        Missed win:     	---       	Black=2      Mistake:       	White=10    	Black=2      Inaccurate:     	White=6     	Black=1      OK:         	White=14    	Black=15     Best:        	White=3     	Black=4      Strong:       	---       	Black=4} 0-1

[Event "4NCL Div 2 2024-25"]
[Site "England"]
[Date "2025.02.16"]
[Round "6.7"]
[White "Merriman, James"]
[Black "Zakarian, Dimitrios Levon"]
[Result "1/2-1/2"]
[Annotator "TA"]
[ECO "E36"]
[WhiteElo "2073"]
[BlackElo "1968"]
[PlyCount "51"]
[EventDate "2024.11.23"]
[EventType "team-tourn"]
[EventCountry "ENG"]
[SourceTitle "playchess.com"]
[Source "ChessBase"]
[SourceQuality "1"]
[TimeControl "40/6000+30:3000+30"]

{[%evp 12,51,12,17,5,16,28,8,1,0,18,0,42,10,10,6,3,0,30,0,2,0,6,0,0,0,0,0,0,0,0,0,0,0,4,0,0,0,1,0,0,0]} 1. d4 {[%emt 0:14:28]} Nf6 {[%emt 0:10:02]} 2. c4 {[%emt 0:00:08]} e6 {[%emt 0:00:02]} 3. Nc3 {[%emt 0:00:21]} Bb4 {[%emt 0:00:04]} 4. Qc2 {[%emt 0:00:05]} O-O {[%emt 0:00:03]} 5. a3 {[%emt 0:00:27]} Bxc3+ {[%emt 0:00:04]} 6. Qxc3 {[%emt 0:00:05]} d5 {[%emt 0:00:04]} 7. Bg5 {[%emt 0:03:13]} dxc4 {[%emt 0:00:20] E36: Nimzo-Indian: Classical: 4...d5 5 a3.} 8. Qxc4 {[%emt 0:02:37]} h6 {[%emt 0:00:38]} 9. Bh4 {[%emt 0:04:00]} b6 {[%emt 0:00:07]} 10. Nf3 {[%emt 0:03:33]} Ba6 {[%emt 0:00:12]} 11. Qa4 {[%emt 0:08:52]} Qd7 {[%emt 0:00:06]} 12. Qxd7 {[%emt 0:06:05]} Nbxd7 {[%emt 0:00:02][%cal Bb8d7,Bd7c5,Bc5b3][%mdl 32]} 13. e3 {[%emt 0:06:08]} Bxf1 {[%emt 0:01:23]} 14. Rxf1 {[%emt 0:01:25]} c5 {[%emt 0:01:57]} (14... g5 $5 15. Bg3 $8 c5 $11) 15. dxc5 $146 {[%emt 0:20:47]} ({Predecessor:} 15. Bxf6 gxf6 16. Ke2 Rac8 17. Rac1 c4 18. Nd2 b5 19. a4 a6 20. axb5 axb5 21. Ne4 {0-1 Machlik,M (2079)-Sahithi Varshini,M (2329) Wch Rapid (Women) 2024 (9)}) 15... Nxc5 {[%emt 0:00:12] The position is equal.} 16. Bxf6 {[%emt 0:00:02]} gxf6 {[%emt 0:00:07]} 17. Ke2 {[%emt 0:04:04] Dodges Nd3} Nb3 {[%emt 0:04:47]} 18. Rad1 {[%emt 0:00:48]} Rac8 {[%emt 0:00:09]} 19. Nd4 {[%emt 0:00:20] Inhibits Rc2+.} Nxd4+ {[%emt 0:00:06]} 20. Rxd4 $11 {[%emt 0:00:07][%mdl 4096] Endgame KRR-KRR} Rc2+ {[%emt 0:00:15]} 21. Rd2 {[%emt 0:00:01]} Rfc8 {[%emt 0:00:06]} 22. Rfd1 {[%emt 0:00:30]} Kf8 {[%emt 0:00:41]} 23. Kf3 {[%emt 0:03:23]} Rxd2 {[%emt 0:00:36]} 24. Rxd2 {[%emt 0:00:02]} Ke7 {[%emt 0:00:12]} 25. e4 {[%emt 0:02:01]} Rc5 {[%emt 0:02:32]} 26. Ke3 {[%emt 0:04:34] An uneventful encounter.   Weighted Error Value: White=0.08 (flawless) /Black=0.07 (flawless)   Inaccurate:     	White=2     	Black=2      OK:         	White=4     	Black=8      Best:        	White=1     	---} 1/2-1/2